bitfinex-derivatives/quotes_ETHF0:USTF0_20250604
["timestamp","ask_amount","ask_price","bid_price","bid_amount"]
[1749060674793,1.37826,2636.4,2636.3,0.76398336]
[1749060675293,1.37826,2636.4,2636.3,0.00569336]
[1749060675694,2.2239361,2636.4,2636.3,0.00569336]
[1749060676591,1.6039361,2636.4,2636.3,0.76398336]
[1749060677194,0.8456761,2636.4,2636.3,0.76398336]
[1749060678591,1.6039361,2636.4,2636.3,0.76398336]
[1749060679203,1.60347925,2636.4,2636.3,0.76398336]
[1749060679993,1.60347925,2636.4,2636.3,4.57369336]
[1749060681399,1.60347925,2636.4,2636.3,5.33198336]
[1749060683002,40.8,2636.5,2636.4,0.75826]
[1749060683203,41.64518563,2636.5,2636.4,0.75826]
[1749060683401,41.64516137,2636.5,2636.4,0.75826]
[1749060683594,42.40341137,2636.5,2636.4,0.75826]
[1749060684201,0.84516137,2636.5,2636.4,0.75826]
[1749060684398,0.84516137,2636.5,2636.4,1.36936]
[1749060684703,0.75823,2636.5,2636.4,1.36936]
[1749060685402,1.60363749,2636.5,2636.4,0.6111]
[1749060686199,1.60363749,2636.5,2636.4,1.36936]
[1749060686406,0.75823,2636.5,2636.4,1.36936]
[1749060687806,1.60357115,2636.5,2636.4,1.36936]
[1749060691103,1.60357115,2636.5,2636.4,23.43836]
[1749060691500,1.60357115,2636.5,2636.4,0.6111]
[1749060691695,1.60357115,2636.5,2636.4,22.6801]
[1749060692396,1.60461148,2636.5,2636.4,22.6801]
[1749060693205,1.60461148,2636.5,2636.3,0.76396336]
[1749060693206,0.75826,2636.4,2636.3,0.76396336]
[1749060693404,1.60464148,2636.4,2636.3,22.83196336]
[1749060694007,1.60464148,2636.4,2636.3,4.57369336]
[1749060694507,1.60464148,2636.4,2636.3,5.33198336]
[1749060695708,0.84638148,2636.4,2636.3,5.33198336]
[1749060695910,1.60464148,2636.4,2636.3,5.33198336]
[1749060696309,0.84638148,2636.4,2636.3,5.33198336]
[1749060696514,0.75826,2636.4,2636.3,5.33198336]
[1749060696704,0.75826,2636.5,2636.4,0.75826]
[1749060696898,0.75822,2636.6,2636.5,0.75821]
[1749060697108,0.75825,2636.5,2636.4,0.75824]
[1749060697407,1.60585067,2636.5,2636.4,0.75824]
[1749060701212,1.60671741,2636.5,2636.4,0.75824]
[1749060701410,0.75826,2636.4,2636.3,5.33196336]
[1749060701708,1.60672741,2636.4,2636.3,5.33196336]
[1749060701905,0.84846741,2636.4,2636.3,5.33196336]
[1749060702706,1.60672741,2636.4,2636.3,5.33196336]
[1749060702916,0.84846741,2636.4,2636.3,5.33196336]
[1749060703100,0.84846741,2636.4,2636.3,5.33198336]
[1749060703412,47.81639,2636.8,2636.4,0.75826]
[1749060703413,1.60689859,2636.5,2636.4,0.75826]
[1749060703612,1.60689882,2636.5,2636.4,1.40436]
[1749060704710,0.84864882,2636.5,2636.4,1.40436]
[1749060705115,0.75806,2637.2,2636.4,10.1294]
[1749060705309,0.76361336,2637.6,2637.5,0.75795]
[1749060705510,0.00569336,2637.6,2637.5,26.02775]
[1749060705716,0.00569336,2637.6,2637.5,22.81995]
[1749060706611,0.76361336,2637.6,2637.5,22.81995]
[1749060706811,0.76361336,2637.6,2637.5,22.062]
[1749060707013,0.76361336,2637.6,2637.5,22.81995]
[1749060708021,0.00569336,2637.6,2637.5,22.81995]
[1749060708214,0.00569336,2637.6,2637.5,23.45195]
[1749060708414,0.76361336,2637.6,2637.5,23.45195]
[1749060710314,0.83092812,2637.6,2637.5,23.45195]
[1749060710510,0.83092812,2637.6,2637.2,0.7388]
[1749060710511,0.75795,2637.5,2637.2,0.7388]
[1749060710716,0.75798,2637.4,2637.3,4.563]
[1749060710914,0.758,2637.3,2637.2,0.7388]
[1749060711113,0.75815,2636.8,2636.7,1.06602531]
[1749060711319,0.75815,2636.8,2636.7,4.563]
[1749060711613,3.96595,2636.8,2636.7,4.563]
[1749060712213,5.20795,2636.8,2636.7,4.563]
[1749060713227,0.75821,2636.6,2636.5,38.99223]
[1749060713526,0.75821,2636.6,2636.5,43.55623]
[1749060714722,3.2078,2637.1,2636.5,42.798]
[1749060714929,0.75811,2637.0,2636.9,0.7581]
[1749060715224,0.75811,2637.0,2636.9,5.3221]
[1749060716427,0.75807,2637.1,2637.0,0.75807]
[1749060716624,1.39165,2637.2,2637.1,0.75806]
[1749060716924,1.39165,2637.2,2637.0,17.493]
[1749060716925,0.75804,2637.2,2637.0,17.493]
[1749060717229,0.75804,2637.2,2637.1,0.75803]
[1749060717428,1.59956957,2637.2,2637.1,0.75803]
[1749060717825,0.75804,2637.2,2637.1,0.75803]
[1749060719115,0.75803,2637.3,2637.2,0.75802]
[1749060719330,1.59914898,2637.3,2637.2,0.75802]
[1749060719726,0.75805,2637.2,2637.1,0.75804]
[1749060720423,1.59897577,2637.2,2637.1,0.75804]
[1749060720627,0.75805,2637.2,2637.1,0.75804]
[1749060720822,1.59892921,2637.2,2637.1,0.75804]
[1749060721021,0.75806,2637.1,2637.0,0.75807]
[1749060721223,0.75808,2637.1,2637.0,18.24908]
[1749060721628,0.75806,2637.2,2637.1,0.75805]
[1749060721825,1.59888943,2637.2,2637.1,0.75805]
[1749060723028,0.75806,2637.2,2637.1,0.75805]
[1749060723622,0.75799,2637.4,2637.3,0.75798]
[1749060723817,1.59890199,2637.4,2637.3,4.563]
[1749060724331,1.59890199,2637.4,2637.3,5.321]
[1749060724829,1.59890199,2637.4,2637.3,4.563]
[1749060725229,1.59890199,2637.4,2637.3,5.321]
[1749060725828,1.59913667,2637.4,2637.3,4.563]
[1749060726024,1.59913667,2637.4,2637.1,3.2078]
[1749060726025,0.75803,2637.2,2637.1,3.96584]
[1749060726331,0.75803,2637.2,2637.1,26.01784]
[1749060726633,0.82534476,2637.2,2637.1,26.01784]
[1749060727129,0.82534476,2637.2,2637.1,22.052]
[1749060727336,0.82534476,2637.2,2637.1,4.563]
[1749060727738,1.66668823,2637.2,2637.1,5.32106]
[1749060727930,2.88368823,2637.2,2637.1,5.32106]
[1749060730139,2.88387307,2637.2,2637.1,5.32106]
[1749060730542,0.75812,2637.0,2636.9,0.75808]
[1749060730732,0.75812,2637.0,2636.9,5.32108]
[1749060730927,0.658,2637.1,2637.0,0.75809]
[1749060731135,1.49963506,2637.1,2637.0,0.75809]
[1749060731335,0.84163506,2637.1,2637.0,0.75809]
[1749060731537,0.75809,2637.0,2636.9,4.563]
[1749060731842,0.75808,2637.1,2637.0,0.75807]
[1749060732039,2.92173565,2637.1,2637.0,0.75807]
[1749060733340,2.16365565,2637.1,2637.0,0.75807]
[1749060734037,2.92171565,2637.1,2637.0,0.75807]
[1749060734631,2.92236892,2637.1,2637.0,0.75807]
[1749060735342,0.75809,2637.0,2636.9,4.563]
[1749060735539,3.44839892,2637.0,2636.9,5.32112]
[1749060736133,3.44839892,2637.0,2636.9,4.563]
[1749060736333,4.58556892,2637.0,2636.5,38.234]
[1749060736636,0.75821,2636.6,2636.5,38.234]
[1749060736836,1.60051892,2636.6,2636.5,42.794]
[1749060737435,2.25691892,2636.6,2636.5,42.794]
[1749060737640,0.75826,2636.4,2636.3,4.56569336]
[1749060737841,1.60056892,2636.4,2636.3,4.56569336]
[1749060738241,0.84230892,2636.4,2636.3,5.32398336]
[1749060738751,0.75825,2636.5,2636.4,0.75826]
[1749060738947,1.59923025,2636.5,2636.4,0.75826]
[1749060739243,0.84098025,2636.5,2636.4,0.75826]
[1749060739645,1.59921025,2636.5,2636.4,0.75826]
[1749060741858,0.84098025,2636.5,2636.4,0.75826]
[1749060742536,3.2078,2637.4,2636.9,0.75812]
[1749060742537,0.6385,2637.0,2636.9,0.75812]
[1749060742749,0.6385,2637.0,2636.9,5.31812]
[1749060742945,1.39659,2637.0,2636.9,5.31812]
[1749060743345,1.39659,2637.0,2636.9,4.56]
[1749060743546,1.39659,2637.0,2636.9,5.31812]
[1749060743848,1.39659,2637.0,2636.9,4.56]
[1749060744246,0.75815,2636.8,2636.7,4.61466]
[1749060744450,0.75815,2636.8,2636.7,8.52598]
[1749060748852,1.3116,2636.9,2636.8,0.75815]
[1749060749853,0.75815,2636.8,2636.7,8.52595]
[1749060750561,0.75814,2636.9,2636.8,0.75815]
[1749060751853,0.75815,2636.8,2636.7,9.14625]
[1749060752359,1.2641,2637.2,2636.7,8.3881]
[1749060752651,41.4606,2637.3,2636.7,8.3881]
[1749060752652,0.75808,2637.1,2637.0,0.75806]
[1749060753349,0.75812,2637.0,2636.9,0.7581]
[1749060754555,1.60816233,2637.0,2636.9,0.7581]
[1749060756550,0.75815,2636.9,2636.8,0.75813]
[1749060756746,1.60840542,2636.9,2636.8,0.75813]
[1749060758560,1.60837542,2636.9,2636.8,0.75813]
[1749060759560,0.75815,2636.8,2636.7,9.14625]
[1749060759759,1.60840542,2636.8,2636.7,9.14625]
[1749060760953,1.60889518,2636.8,2636.7,9.14625]
[1749060762364,1.60889518,2636.8,2636.7,26.63025]
[1749060762853,1.60889518,2636.8,2636.7,5.1803]
[1749060763055,0.7582,2636.6,2636.5,38.229]
[1749060763261,1.60894518,2636.6,2636.5,61.03123]
[1749060763960,0.85074518,2636.6,2636.5,61.03123]
[1749060764156,0.75821,2636.6,2636.5,61.03123]
[1749060764357,1.60925459,2636.7,2636.6,0.7582]
[1749060765561,0.85902852,2636.7,2636.6,0.7582]
[1749060766459,0.85902852,2636.7,2636.6,17.483]
[1749060766760,2.92391852,2636.7,2636.6,17.483]
[1749060767561,2.92391852,2636.7,2636.6,18.24121]
[1749060767762,2.92391852,2636.7,2636.6,17.483]
[1749060767962,2.92391852,2636.7,2636.6,18.24121]
[1749060768165,0.85902852,2636.7,2636.6,18.24121]
[1749060769756,0.75814,2636.9,2636.8,0.75815]
[1749060769956,0.75818,2636.8,2636.7,0.75816]
[1749060770156,0.75821,2636.6,2636.5,42.789]
[1749060770360,1.61708335,2636.6,2636.5,61.03023]
[1749060770761,2.87138335,2636.6,2636.5,61.03023]
[1749060770966,2.11317335,2636.6,2636.5,61.03023]
[1749060771168,0.85887335,2636.6,2636.5,61.03023]
[1749060771363,0.75812,2636.9,2636.8,0.75815]
[1749060771556,1.61726953,2636.9,2636.8,4.557]
[1749060771758,2.81806953,2636.9,2636.8,4.557]
[1749060771955,0.75815,2636.8,2636.7,0.75817]
[1749060772163,2.81809953,2636.8,2636.7,22.039]
[1749060772563,2.81809953,2636.8,2636.7,22.79718]
[1749060773463,2.81809953,2636.8,2636.7,22.039]
[1749060773860,2.81809953,2636.8,2636.7,4.557]
[1749060774168,0.75821,2636.6,2636.5,38.98722]
[1749060774359,1.61727834,2636.6,2636.5,61.02622]
[1749060774765,3.45247834,2636.6,2636.5,61.02622]
[1749060775560,3.45247834,2636.6,2636.5,38.98722]
[1749060775769,3.45247834,2636.6,2636.5,61.02622]
[1749060778167,3.45247834,2636.6,2636.5,38.229]
[1749060778372,3.45247834,2636.6,2636.5,60.268]
[1749060778573,3.45189806,2636.6,2636.5,60.268]
[1749060779175,3.45189806,2636.6,2636.5,61.02623]
[1749060779571,3.45189806,2636.6,2636.5,60.268]
[1749060779968,3.45189806,2636.6,2636.5,61.02623]
[1749060781071,0.85848806,2636.6,2636.5,61.02623]
[1749060781477,1.61669806,2636.6,2636.5,61.02623]
[1749060782568,0.85848806,2636.6,2636.5,61.02623]
[1749060783771,0.75819,2636.7,2636.6,0.75821]
[1749060783980,0.75816,2636.8,2636.7,0.75818]
[1749060784376,1.61659355,2636.8,2636.7,0.75818]
[1749060784879,0.75818,2636.7,2636.6,1.41638]
[1749060785081,1.61661355,2636.7,2636.6,1.41638]
[1749060785778,1.61664541,2636.7,2636.6,1.41638]
[1749060786279,0.85846541,2636.7,2636.6,1.41638]
[1749060787379,0.85846541,2636.7,2636.6,2.62218]
[1749060790377,0.75817,2636.8,2636.7,0.75818]
[1749060790582,1.61696683,2636.8,2636.7,0.75818]
[1749060797291,0.75818,2636.7,2636.6,1.4164]
[1749060797587,1.61697683,2636.7,2636.6,18.8934]
[1749060799282,1.61735734,2636.7,2636.6,18.8934]
[1749060799481,0.85917734,2636.7,2636.6,18.8934]
[1749060799682,1.61735734,2636.7,2636.6,18.8934]
[1749060799885,0.85917734,2636.7,2636.6,18.8934]
[1749060803691,1.36505,2636.8,2636.7,0.75818]
[1749060803891,2.22432496,2636.8,2636.7,0.75818]
[1749060804398,0.85927496,2636.8,2636.7,0.75818]
[1749060805895,0.06731476,2636.9,2636.7,8.2078]
[1749060806094,3.96569,2637.7,2637.5,0.75795]
[1749060806286,3.2078,2637.7,2637.5,22.027]
[1749060806486,1.41691336,2637.6,2637.5,22.027]
[1749060806694,0.75797,2637.4,2637.3,17.474]
[1749060806897,0.75797,2637.4,2637.3,22.027]
[1749060808495,3.10009,2637.5,2637.3,4.553]
[1749060808696,0.75798,2637.4,2637.3,4.553]
[1749060808892,2.04578,2637.4,2637.3,5.311]
[1749060809191,1.2878,2637.4,2637.3,5.311]
[1749060810095,2.04577,2637.4,2637.3,5.311]
[1749060810703,1.2878,2637.4,2637.3,5.311]
[1749060812003,0.65899336,2637.6,2637.5,0.75795]
[1749060812206,2.63461336,2637.6,2637.5,0.75795]
[1749060814306,0.75796,2637.5,2637.4,0.75795]
[1749060816508,1.48423812,2637.6,2637.5,0.75795]
[1749060817010,1.41692336,2637.6,2637.5,0.75795]
[1749060818006,2.27208902,2637.6,2637.5,0.75795]
[1749060819203,1.61878902,2637.6,2637.5,0.75795]
[1749060819608,0.75795,2637.5,2637.4,1.05470438]
[1749060819808,0.85516566,2637.5,2637.4,0.75797]
[1749060820712,1.61311566,2637.5,2637.4,0.75797]
[1749060821314,1.61373093,2637.5,2637.4,0.75797]
[1749060825311,0.00569336,2637.6,2637.5,0.75795]
[1749060825508,0.86200003,2637.6,2637.5,0.75795]
[1749060825709,0.88451719,2637.6,2637.5,0.75795]
[1749060826220,0.75797,2637.5,2637.4,0.75795]
[1749060826518,1.63679383,2637.5,2637.4,18.22295]
[1749060829217,1.63677383,2637.5,2637.4,18.22295]
[1749060830021,0.87882383,2637.5,2637.4,18.22095]
[1749060830223,2.04233336,2637.6,2637.5,0.75795]
[1749060830520,2.9216111,2637.6,2637.5,0.75795]
[1749060832623,0.8849711,2637.6,2637.5,0.75795]
[1749060834026,0.8849711,2637.6,2637.5,40.18875]
[1749060834522,0.00569336,2637.6,2637.5,40.18875]
[1749060834723,0.88603079,2637.6,2637.5,40.18875]
[1749060835329,0.88603079,2637.6,2637.5,38.97795]
[1749060837723,0.88603079,2637.6,2637.5,40.20635]
[1749060838125,0.00569336,2637.6,2637.5,45.20635]
[1749060838326,0.5989,2638.2,2638.1,0.75777]
[1749060838525,1.47946745,2638.2,2638.1,22.76377]
[1749060839121,1.47929223,2638.2,2638.1,22.76377]
[1749060839325,2.23704223,2638.2,2638.1,22.76377]
[1749060839630,1.47929223,2638.2,2638.1,22.76377]
[1749060839825,2.23704223,2638.2,2638.1,22.76377]
[1749060840930,1.47929223,2638.2,2638.1,22.76377]
[1749060841133,2.23704223,2638.2,2638.1,22.76377]
[1749060841328,2.23704223,2638.2,2638.1,22.76177]
[1749060841832,2.23784353,2638.2,2638.1,22.004]
[1749060842033,3.48064353,2638.2,2638.1,22.004]
[1749060842931,0.7578,2638.1,2638.0,18.2148]
[1749060843130,0.7578,2638.1,2638.0,22.7608]
[1749060843131,2.88179353,2638.1,2638.0,22.7608]
[1749060844032,2.881538,2638.1,2638.0,22.7608]
[1749060845335,2.94885276,2638.1,2638.0,22.7608]
[1749060846337,2.06791476,2638.1,2638.0,22.7608]
[1749060846532,2.94879326,2638.1,2638.0,22.7608]
[1749060846833,2.94879326,2638.1,2638.0,4.546]
[1749060847330,0.7578,2638.0,2637.9,0.00569336]
[1749060847539,6.0763785,2638.0,2637.9,4.55169336]
[1749060847837,11.0763785,2638.0,2637.9,4.55169336]
[1749060848236,0.75792,2637.6,2637.5,38.22]
[1749060848435,0.758,2637.3,2637.2,5.304]
[1749060848632,1.6388785,2637.3,2637.2,5.304]
[1749060850143,0.8808785,2637.3,2637.2,5.304]
[1749060850642,0.88014491,2637.3,2637.2,5.304]
[1749060852645,1.63814491,2637.3,2637.2,5.304]
[1749060854641,1.63814491,2637.3,2637.2,22.759]
[1749060855042,0.88014491,2637.3,2637.2,22.759]
[1749060855242,0.87913876,2637.3,2637.2,22.759]
[1749060855846,0.87913876,2637.3,2637.2,25.9668]
[1749060857641,0.75794,2637.6,2637.5,0.75795]
[1749060857847,1.63709099,2637.6,2637.5,0.75795]
[1749060858647,0.75796,2637.5,2637.3,0.6634]
[1749060858946,0.87915099,2637.4,2637.3,1.4214]
[1749060859451,0.87915099,2637.4,2637.3,18.8764]
[1749060859653,1.39456,2637.5,2637.4,0.75797]
[1749060859847,2.27368022,2637.5,2637.4,0.75797]
[1749060860352,1.51572022,2637.5,2637.4,0.75797]
[1749060861239,2.27367022,2637.5,2637.4,0.75797]
[1749060861941,1.51572022,2637.5,2637.4,0.75797]
[1749060862147,2.27367022,2637.5,2637.4,0.75797]
[1749060862853,0.87912022,2637.5,2637.4,0.75797]
[1749060863254,0.75798,2637.4,2637.3,1.42138]
[1749060863452,1.63710022,2637.4,2637.3,18.87538]
[1749060865555,0.87912022,2637.4,2637.3,18.87538]
[1749060867659,1.63710022,2637.4,2637.3,18.87538]
[1749060867853,0.87912022,2637.4,2637.3,18.87538]
[1749060868059,1.63710022,2637.4,2637.3,18.87538]
[1749060868656,1.6374028,2637.4,2637.3,18.87538]
[1749060868857,0.758,2637.3,2637.2,5.30402]
[1749060869056,1.6374228,2637.3,2637.2,22.75602]
[1749060869257,2.3004228,2637.3,2637.2,22.75602]
[1749060870163,1.5424228,2637.3,2637.2,22.75602]
[1749060870760,0.8794228,2637.3,2637.2,22.75602]
[1749060871858,1.63775407,2637.4,2637.3,0.758]
[1749060872054,1.63775178,2637.4,2637.3,0.758]
[1749060873067,1.63799786,2637.4,2637.3,0.758]
[1749060874771,1.70531262,2637.4,2637.3,0.758]
[1749060875772,1.63799786,2637.4,2637.3,0.758]
[1749060876566,0.88002786,2637.4,2637.3,0.758]
[1749060877474,0.75792,2637.6,2637.2,25.2058]
[1749060877475,0.75795,2637.5,2637.4,0.75798]
[1749060877674,1.63953779,2637.5,2637.4,0.75798]
[1749060881467,0.758,2637.4,2637.3,0.758]
[1749060881665,1.63958779,2637.4,2637.3,0.758]
[1749060881874,1.70690255,2637.4,2637.3,0.758]
[1749060883373,0.82531476,2637.4,2637.3,0.758]
[1749060884067,1.70757457,2637.4,2637.3,0.758]
[1749060884776,0.82531476,2637.4,2637.3,0.758]
[1749060886080,1.70744077,2637.4,2637.3,0.758]
[1749060886271,0.94947077,2637.4,2637.3,0.758]
[1749060886576,1.70750817,2637.4,2637.3,0.758]
[1749060886972,0.94953817,2637.4,2637.3,0.758]
[1749060891072,2.57553,2637.6,2637.5,0.75795]
[1749060891377,3.45770402,2637.6,2637.5,0.75795]
[1749060891575,3.45770402,2637.6,2637.5,22.73995]
[1749060892677,3.45770402,2637.6,2637.5,4.536]
[1749060892983,3.52501878,2637.6,2637.5,22.73995]
[1749060893978,3.45770402,2637.6,2637.5,22.73995]
[1749060895484,2.57552,2637.6,2637.5,22.73995]
[1749060895779,3.45785183,2637.6,2637.5,22.73995]
[1749060896172,3.45785183,2637.6,2637.5,4.536]
[1749060896381,3.45785183,2637.6,2637.5,21.98]
[1749060896674,3.45785183,2637.6,2637.5,22.73795]
[1749060896984,0.75803,2637.3,2637.0,38.22569336]
[1749060897190,2.24816183,2637.2,2637.1,4.536]
[1749060897378,4.15326183,2637.2,2637.1,4.536]
[1749060897684,4.15326183,2637.2,2637.1,5.29406]
[1749060900082,4.15249511,2637.2,2637.1,5.29406]
[1749060900681,4.15249511,2637.2,2637.1,4.536]
[1749060901081,4.15249511,2637.2,2637.1,5.29406]
[1749060901781,0.88156511,2637.2,2637.1,5.29406]
[1749060902385,1.63959511,2637.2,2637.1,5.29406]
[1749060902577,0.88156511,2637.2,2637.1,5.29406]
[1749060902777,1.40012,2637.3,2637.2,0.75803]
[1749060902985,1.52421189,2637.3,2637.2,0.75803]
[1749060903283,0.88211189,2637.3,2637.2,0.75803]
[1749060903682,0.88211189,2637.3,2637.2,1.97213]
[1749060904683,1.4137,2637.7,2637.6,0.75792]
[1749060904983,2.29546486,2637.7,2637.6,21.98]
[1749060905183,3.58966486,2637.7,2637.6,21.98]
[1749060905476,6.79746486,2637.7,2637.6,4.537]
[1749060905879,0.75803,2637.2,2637.1,0.6632]
[1749060906081,1.63979486,2637.2,2637.1,4.536]
[1749060906287,0.75806,2637.1,2637.0,38.22569336]
[1749060906487,3.51622486,2637.1,2637.0,42.76169336]
[1749060906689,4.17402486,2637.1,2637.0,42.76169336]
[1749060907084,3.29226,2637.1,2637.0,43.51978336]
[1749060907292,4.17342486,2637.1,2637.0,42.76169336]
[1749060907678,4.17342486,2637.1,2637.0,43.51978336]
[1749060907987,3.41536486,2637.1,2637.0,43.51978336]
[1749060908194,0.88116486,2637.1,2637.0,43.51978336]
[1749060909192,1.63922486,2637.1,2637.0,43.51978336]
[1749060909396,0.88116486,2637.1,2637.0,43.51978336]
[1749060910285,1.63922486,2637.1,2637.0,43.51978336]
[1749060910490,2.24172486,2637.1,2637.0,42.76269336]
[1749060911395,2.87692486,2637.1,2637.0,42.76269336]
[1749060912497,2.87692486,2637.1,2637.0,43.52078336]
[1749060912795,2.87692486,2637.1,2637.0,42.76269336]
[1749060913492,0.7582,2636.6,2636.5,0.75822]
[1749060913792,0.75818,2636.8,2636.7,0.75815]
[1749060913993,1.63813456,2636.8,2636.7,0.75815]
[1749060914789,0.87998456,2636.8,2636.7,0.75815]
[1749060914989,0.88003193,2636.9,2636.7,1.3113]
[1749060915193,3.97159336,2637.0,2636.9,0.75812]
[1749060915396,3.97159336,2637.0,2636.9,5.29512]
[1749060915397,4.85163572,2637.0,2636.9,5.29512]
[1749060915996,4.85171299,2637.0,2636.9,4.537]
[1749060916290,4.85171299,2637.0,2636.9,5.29512]
[1749060916498,4.85171299,2637.0,2636.9,4.537]
[1749060917393,4.85171299,2637.0,2636.9,5.29512]
[1749060917592,4.85171299,2637.0,2636.9,4.537]
[1749060917895,1.64391299,2637.0,2636.9,4.537]
[1749060920392,1.64376205,2637.0,2636.9,4.537]
[1749060920696,2.94656205,2637.0,2636.9,4.537]
[1749060923191,1.64376205,2637.0,2636.9,4.537]
[1749060924194,2.89646205,2637.0,2636.9,4.537]
[1749060924792,2.89636339,2637.0,2636.9,4.537]
[1749060926498,1.64366339,2637.0,2636.9,4.537]
[1749060927895,1.64366339,2637.0,2636.9,5.29512]
[1749060928102,0.88556339,2637.0,2636.9,5.29512]
[1749060928299,0.87417667,2637.0,2636.9,10.29512]
[1749060928504,0.75794,2637.6,2637.5,0.75795]
[1749060928705,0.75794,2637.6,2637.5,4.531]
[1749060929001,0.75797,2637.4,2637.3,1.2555]
[1749060929203,0.75797,2637.4,2637.3,23.2245]
[1749060930395,0.75797,2637.4,2637.3,23.9825]
[1749060930593,0.75797,2637.4,2637.3,23.2245]
[1749060933101,0.75797,2637.4,2637.3,23.9825]
[1749060933302,0.75797,2637.4,2637.3,23.2245]
[1749060934608,0.82528476,2637.4,2637.3,23.9825]
[1749060935603,0.06731476,2637.4,2637.3,28.9825]
[1749060936001,0.06731476,2637.4,2637.3,30.1988]
[1749060943416,0.06731476,2637.4,2637.3,25.1988]
[1749060944111,0.06731476,2637.4,2637.3,25.1908]
[1749060944814,0.06731476,2637.4,2637.3,3.2298]
[1749060945015,0.06731476,2637.4,2637.3,5.9146]
[1749060945218,0.06731476,2637.4,2637.3,23.3436]
[1749060945219,0.82528476,2637.4,2637.3,23.3436]
[1749060945711,0.06731476,2637.4,2637.3,5.288]
[1749060946105,1.42838476,2637.4,2637.3,4.53]
[1749060946308,3.57070667,2637.4,2637.3,5.288]
[1749060946705,2.69128476,2637.4,2637.3,4.53]
[1749060946918,0.75806,2637.1,2637.0,4.53]
[1749060947116,1.63738304,2637.1,2637.0,4.53]
[1749060947615,43.70028304,2637.1,2637.0,4.53]
[1749060947811,42.94222304,2637.1,2637.0,5.28809]
[1749060948015,43.70028304,2637.1,2637.0,5.28809]
[1749060948216,42.94222304,2637.1,2637.0,5.28809]
[1749060948418,43.70028304,2637.1,2637.0,5.28809]
[1749060948816,42.94222304,2637.1,2637.0,5.28809]
[1749060949015,2.90028304,2637.1,2637.0,5.28809]
[1749060949420,2.90028304,2637.1,2637.0,4.53]
[1749060950809,2.9675978,2637.1,2637.0,4.53]
[1749060951615,2.9675978,2637.1,2637.0,5.28809]
[1749060951818,2.2095378,2637.1,2637.0,5.28809]
[1749060952015,2.9675978,2637.1,2637.0,5.28809]
[1749060953120,2.9675978,2637.1,2637.0,4.53]
[1749060954028,2.90028304,2637.1,2637.0,5.28809]
[1749060954518,2.14222304,2637.1,2637.0,5.28809]
[1749060954719,0.87932304,2637.1,2637.0,4.53]
[1749060954927,1.7046978,2637.1,2637.0,4.53]
[1749060955221,2.9425978,2637.1,2637.0,5.28809]
[1749060955524,2.9414093,2637.1,2637.0,5.28809]
[1749060955720,2.9414093,2637.1,2637.0,4.53]
[1749060955920,0.9454493,2637.1,2637.0,5.28809]
[1749060956926,0.94581441,2637.1,2637.0,5.28809]
[1749060961931,0.94581441,2637.1,2637.0,6.50229]
[1749060962832,0.06731476,2637.1,2637.0,6.50229]
[1749060963929,0.94640757,2637.1,2637.0,6.50229]
[1749060964236,0.06731476,2637.1,2637.0,6.50229]
[1749060965131,0.94712585,2637.1,2637.0,5.28809]
[1749060965427,0.94712585,2637.1,2637.0,22.71609]
[1749060967434,0.9480978,2637.1,2637.0,22.71609]
[1749060968032,0.06731476,2637.1,2637.0,22.71609]
[1749060968533,0.06731476,2637.1,2637.0,22.71509]
[1749060971436,0.06731476,2637.1,2637.0,22.71409]
[1749060975138,0.95006743,2637.1,2637.0,22.71409]
[1749060976443,0.95069649,2637.1,2637.0,22.71409]
[1749060976638,0.06731476,2637.1,2637.0,22.71409]
[1749060977339,0.06731476,2637.1,2637.0,5.28809]
[1749060977544,0.06731476,2637.1,2637.0,22.71209]
[1749060977841,0.75809,2637.0,2636.9,0.739]
[1749060978037,0.75809,2637.0,2636.9,5.265]
[1749060978038,4.20480852,2637.0,2636.9,5.265]
[1749060978237,4.20480852,2637.0,2636.9,4.526]
[1749060978639,4.20480852,2637.0,2636.9,5.28412]
[1749060979041,3.44671852,2637.0,2636.9,5.28412]
[1749060980046,2.5628,2637.0,2636.9,5.28412]
[1749060980342,2.63011476,2637.0,2636.9,5.28412]
[1749060980944,3.51424812,2637.0,2636.9,5.28412]
[1749060984249,0.95144812,2637.0,2636.9,8.49192]
[1749060984452,0.95144812,2637.0,2636.9,9.13952]
[1749060986143,0.06731476,2637.0,2636.9,9.13952]
[1749060987250,0.95048595,2637.0,2636.9,9.13952]
[1749060987646,0.95048595,2637.0,2636.9,10.40932]
[1749060988048,0.06731476,2637.0,2636.9,10.40932]
[1749060989943,0.06731476,2637.0,2636.9,26.56252]
[1749060990350,0.95094584,2637.0,2636.9,25.91492]
[1749060990750,0.06731476,2637.0,2636.9,25.91492]
[1749060991152,0.06731476,2637.0,2636.9,27.14032]
[1749060994750,0.95090955,2637.0,2636.9,27.14032]
[1749060995654,0.95090955,2637.0,2636.9,23.93252]
[1749060995859,0.95090955,2637.0,2636.9,27.14032]
[1749060996061,0.95090955,2637.0,2636.9,8.49192]
[1749060996363,0.95090955,2637.0,2636.9,25.91292]
[1749060997859,0.950915,2637.0,2636.9,25.91292]
[1749060998960,1.8978,2637.4,2637.3,0.758]
[1749060999262,1.8978,2637.4,2637.3,5.281]
[1749060999557,0.61779336,2637.6,2637.3,5.281]
[1749060999756,0.00569336,2637.6,2637.5,3.96575]
[1749060999963,1.2223,2638.0,2637.5,3.96575]
[1749060999964,0.6523,2637.9,2637.8,0.75786]
[1749061000161,0.6523,2637.9,2637.8,8.48866]
[1749061002160,0.00569336,2638.1,2638.0,0.7578]
[1749061002363,0.00569336,2638.1,2638.0,18.1758]
[1749061004158,0.00569336,2638.1,2638.0,18.48599782]
[1749061006572,0.00569336,2638.1,2638.0,18.1758]
[1749061007264,0.00569336,2638.1,2637.8,7.7308]
[1749061007462,0.75783,2637.9,2637.8,4.523]
[1749061007665,0.75783,2637.9,2637.8,21.938]
[1749061007867,0.75783,2637.9,2637.8,21.937]